[Event "*** Titled Tuesday Blitz"]
[Site "Chess.com"]
[Date "2021.04.06"]
[Round "3"]
[White "hypert"]
[Black "MaxLeto"]
[Result "1/2-1/2"]
[WhiteElo "2549"]
[BlackElo "2369"]
[TimeControl "180+1"]
[EndTime "10:29:43 PDT"]
[Termination "Game drawn - insufficient material"]

1. Nc3 {[%clk 0:03:00.9]} 1... d5 {[%clk 0:02:59.7]} 2. d3 {[%clk 0:03:01.8]}
2... Nf6 {[%clk 0:02:59.5]} 3. g3 {[%clk 0:03:01.9]} 3... Bf5 {[%clk 0:02:58.9]}
4. Bg2 {[%clk 0:03:01.6]} 4... c6 {[%clk 0:02:57.6]} 5. e4 {[%clk 0:02:50.9]}
5... dxe4 {[%clk 0:02:57.5]} 6. Nxe4 {[%clk 0:02:47.3]} 6... Nxe4 {[%clk
0:02:56.6]} 7. Bxe4 {[%clk 0:02:46.4]} 7... Bxe4 {[%clk 0:02:53.4]} 8. dxe4
{[%clk 0:02:47.3]} 8... Qxd1+ {[%clk 0:02:54]} 9. Kxd1 {[%clk 0:02:47.4]} 9...
Nd7 {[%clk 0:02:54.5]} 10. f4 {[%clk 0:02:46.4]} 10... O-O-O {[%clk 0:02:54.9]}
11. Ke2 {[%clk 0:02:45.1]} 11... e5 {[%clk 0:02:38.8]} 12. Nh3 {[%clk
0:02:19.6]} 12... Be7 {[%clk 0:02:25.9]} 13. f5 {[%clk 0:02:14.2]} 13... Nc5
{[%clk 0:02:24.3]} 14. Kf3 {[%clk 0:02:13.1]} 14... Rd7 {[%clk 0:01:54.9]} 15.
Be3 {[%clk 0:02:11.9]} 15... Na4 {[%clk 0:01:53.9]} 16. b3 {[%clk 0:01:49.9]}
16... Nc3 {[%clk 0:01:49.6]} 17. Nf2 {[%clk 0:01:40.5]} 17... b6 {[%clk
0:01:39.1]} 18. a4 {[%clk 0:01:36.1]} 18... Rhd8 {[%clk 0:01:28.6]} 19. g4
{[%clk 0:01:34.3]} 19... f6 {[%clk 0:01:16.7]} 20. h4 {[%clk 0:01:27.9]} 20...
h6 {[%clk 0:00:59.3]} 21. g5 {[%clk 0:01:23.8]} 21... fxg5 {[%clk 0:00:53.8]}
22. hxg5 {[%clk 0:01:10.5]} 22... Bxg5 {[%clk 0:00:48.1]} 23. Bxg5 {[%clk
0:01:10.7]} 23... hxg5 {[%clk 0:00:49]} 24. Nd3 {[%clk 0:01:10.6]} 24... Rd4
{[%clk 0:00:39.7]} 25. Rae1 {[%clk 0:01:06]} 25... g4+ {[%clk 0:00:19.8]} 26.
Kxg4 {[%clk 0:01:04.1]} 26... Nxe4 {[%clk 0:00:18.4]} 27. Kf3 {[%clk 0:00:58.1]}
27... Ng5+ {[%clk 0:00:16.4]} 28. Ke3 {[%clk 0:00:56]} 28... e4 {[%clk
0:00:15.9]} 29. Nf4 {[%clk 0:00:51]} 29... Rd2 {[%clk 0:00:15.4]} 30. Re2 {[%clk
0:00:47.1]} 30... Rxe2+ {[%clk 0:00:13]} 31. Kxe2 {[%clk 0:00:48]} 31... Nf3
{[%clk 0:00:10.8]} 32. Ne6 {[%clk 0:00:43.5]} 32... Rd2+ {[%clk 0:00:07.3]} 33.
Ke3 {[%clk 0:00:43.7]} 33... Rxc2 {[%clk 0:00:07]} 34. Rh7 {[%clk 0:00:41.3]}
34... Rc3+ {[%clk 0:00:03.5]} 35. Kxe4 {[%clk 0:00:38.1]} 35... Rxb3 {[%clk
0:00:04]} 36. Rxg7 {[%clk 0:00:37.5]} 36... Nd2+ {[%clk 0:00:04]} 37. Ke5 {[%clk
0:00:32]} 37... Nc4+ {[%clk 0:00:04.1]} 38. Kf6 {[%clk 0:00:30.2]} 38... Nd6
{[%clk 0:00:04.5]} 39. Rc7+ {[%clk 0:00:29.7]} 39... Kb8 {[%clk 0:00:04.4]} 40.
Rxc6 {[%clk 0:00:29.7]} 40... Nxf5 {[%clk 0:00:04.5]} 41. Kxf5 {[%clk
0:00:27.3]} 41... Rb4 {[%clk 0:00:05]} 42. a5 {[%clk 0:00:19.7]} 42... Rb5+
{[%clk 0:00:04.3]} 43. Kf6 {[%clk 0:00:17.5]} 43... Rxa5 {[%clk 0:00:04.9]} 44.
Ke7 {[%clk 0:00:17.7]} 44... Kb7 {[%clk 0:00:02.9]} 45. Nd8+ {[%clk 0:00:16.6]}
45... Ka6 {[%clk 0:00:01.8]} 46. Rc7 {[%clk 0:00:16.8]} 46... Rc5 {[%clk
0:00:02.2]} 47. Rd7 {[%clk 0:00:14.6]} 47... Ka5 {[%clk 0:00:01.7]} 48. Rxa7+
{[%clk 0:00:13.7]} 48... Kb4 {[%clk 0:00:02.6]} 49. Ne6 {[%clk 0:00:13.8]} 49...
b5 {[%clk 0:00:03.5]} 50. Nxc5 {[%clk 0:00:13.3]} 50... Kxc5 {[%clk 0:00:04.3]}
51. Rb7 {[%clk 0:00:11.5]} 51... Kc4 {[%clk 0:00:04.8]} 52. Ke6 {[%clk
0:00:11.7]} 52... b4 {[%clk 0:00:05.5]} 53. Ke5 {[%clk 0:00:12.2]} 53... b3
{[%clk 0:00:05.9]} 54. Ke4 {[%clk 0:00:11.1]} 54... Kc3 {[%clk 0:00:06.8]} 55.
Ke3 {[%clk 0:00:11.3]} 55... Kc2 {[%clk 0:00:06.9]} 56. Ke2 {[%clk 0:00:11.3]}
56... b2 {[%clk 0:00:07.2]} 57. Rc7+ {[%clk 0:00:11.7]} 57... Kb3 {[%clk
0:00:06.8]} 58. Rb7+ {[%clk 0:00:11.8]} 58... Kc2 {[%clk 0:00:07.2]} 59. Rc7+
{[%clk 0:00:10.3]} 59... Kb3 {[%clk 0:00:07.5]} 60. Kd2 {[%clk 0:00:10.3]} 60...
b1=Q {[%clk 0:00:07.1]} 61. Rb7+ {[%clk 0:00:10.4]} 61... Ka2 {[%clk 0:00:07.6]}
62. Rxb1 {[%clk 0:00:09.8]} 62... Kxb1 {[%clk 0:00:07.8]} 1/2-1/2

[Event "*** Titled Tuesday Blitz"]
[Site "Chess.com"]
[Date "2021.04.06"]
[Round "3"]
[White "nss13"]
[Black "Camels1981"]
[Result "0-1"]
[WhiteElo "2515"]
[BlackElo "2361"]
[TimeControl "180+1"]
[EndTime "10:29:46 PDT"]
[Termination "Camels1981 won on time"]

1. e4 {[%clk 0:03:00.9]} 1... c5 {[%clk 0:02:59.8]} 2. Nf3 {[%clk 0:03:00.4]}
2... e6 {[%clk 0:02:59.4]} 3. d4 {[%clk 0:03:00.6]} 3... cxd4 {[%clk 0:03:00.3]}
4. Nxd4 {[%clk 0:03:01.4]} 4... Nc6 {[%clk 0:03:00.5]} 5. Nc3 {[%clk 0:03:01.6]}
5... Qc7 {[%clk 0:02:59.8]} 6. g3 {[%clk 0:03:02.1]} 6... a6 {[%clk 0:02:54.5]}
7. Bg2 {[%clk 0:02:57.3]} 7... Nf6 {[%clk 0:02:54.5]} 8. O-O {[%clk 0:02:56.7]}
8... Nxd4 {[%clk 0:02:50.5]} 9. Qxd4 {[%clk 0:02:57.6]} 9... Bc5 {[%clk
0:02:50.6]} 10. Bf4 {[%clk 0:02:57.8]} 10... d6 {[%clk 0:02:50.6]} 11. Qd2
{[%clk 0:02:58]} 11... h6 {[%clk 0:02:40.8]} 12. Rad1 {[%clk 0:02:57.1]} 12...
e5 {[%clk 0:02:38.1]} 13. Be3 {[%clk 0:02:57.4]} 13... Be6 {[%clk 0:02:34.7]}
14. Bxc5 {[%clk 0:02:54.2]} 14... dxc5 {[%clk 0:02:35.6]} 15. Nd5 {[%clk
0:02:54.6]} 15... Bxd5 {[%clk 0:02:35.6]} 16. exd5 {[%clk 0:02:55.5]} 16... Qd6
{[%clk 0:02:34.3]} 17. f4 {[%clk 0:02:55.7]} 17... exf4 {[%clk 0:02:25.6]} 18.
Qxf4 {[%clk 0:02:47.7]} 18... O-O-O {[%clk 0:02:09.8]} 19. c4 {[%clk 0:02:37.7]}
19... Rhe8 {[%clk 0:02:01.1]} 20. Qxd6 {[%clk 0:02:29.5]} 20... Rxd6 {[%clk
0:02:00.9]} 21. Rde1 {[%clk 0:02:30.4]} 21... Rdd8 {[%clk 0:01:54.3]} 22. a3
{[%clk 0:02:17.8]} 22... Kc7 {[%clk 0:01:48.5]} 23. b4 {[%clk 0:02:17.1]} 23...
Rxe1 {[%clk 0:01:39.1]} 24. Rxe1 {[%clk 0:02:16.2]} 24... Kd6 {[%clk 0:01:26]}
25. Rb1 {[%clk 0:01:49.7]} 25... b6 {[%clk 0:01:21.7]} 26. Bf3 {[%clk
0:01:44.3]} 26... Re8 {[%clk 0:01:20.3]} 27. Kf2 {[%clk 0:01:44.2]} 27... Nd7
{[%clk 0:01:16.2]} 28. Be2 {[%clk 0:01:36.1]} 28... f5 {[%clk 0:01:08.1]} 29. h4
{[%clk 0:01:28.4]} 29... g5 {[%clk 0:01:07.7]} 30. hxg5 {[%clk 0:01:28.1]} 30...
hxg5 {[%clk 0:01:08.6]} 31. Rh1 {[%clk 0:01:27.6]} 31... Rf8 {[%clk 0:00:55.6]}
32. Rh7 {[%clk 0:01:21.4]} 32... b5 {[%clk 0:00:28.9]} 33. cxb5 {[%clk
0:01:17.5]} 33... axb5 {[%clk 0:00:28.9]} 34. Bxb5 {[%clk 0:01:18.4]} 34... Ne5
{[%clk 0:00:26.9]} 35. bxc5+ {[%clk 0:01:05.6]} 35... Kxc5 {[%clk 0:00:23]} 36.
Be2 {[%clk 0:01:05.5]} 36... Kxd5 {[%clk 0:00:19.5]} 37. Rg7 {[%clk 0:01:03.1]}
37... g4 {[%clk 0:00:13.5]} 38. Bf1 {[%clk 0:00:14.7]} 38... Ke4 {[%clk
0:00:14.4]} 39. Bg2+ {[%clk 0:00:14.5]} 39... Kd4 {[%clk 0:00:12.7]} 40. Ra7
{[%clk 0:00:12.7]} 40... Nd3+ {[%clk 0:00:12.1]} 41. Kg1 {[%clk 0:00:12.3]}
41... Re8 {[%clk 0:00:11.9]} 42. Ra4+ {[%clk 0:00:11.6]} 42... Ke3 {[%clk
0:00:11.9]} 43. Ra5 {[%clk 0:00:08.3]} 43... f4 {[%clk 0:00:11.5]} 44. gxf4
{[%clk 0:00:07.2]} 44... Nxf4 {[%clk 0:00:12.4]} 45. Rg5 {[%clk 0:00:05.5]}
45... Ne2+ {[%clk 0:00:08.9]} 46. Kf1 {[%clk 0:00:05.8]} 46... Rf8+ {[%clk
0:00:08.3]} 47. Ke1 {[%clk 0:00:05.6]} 47... Kf4 {[%clk 0:00:04]} 48. Rg7 {[%clk
0:00:04.4]} 48... Ng3 {[%clk 0:00:03.6]} 49. Kd2 {[%clk 0:00:03.8]} 49... Rd8+
{[%clk 0:00:03.4]} 50. Kc3 {[%clk 0:00:03.7]} 50... Rc8+ {[%clk 0:00:03.7]} 51.
Kb4 {[%clk 0:00:03.2]} 51... Nf5 {[%clk 0:00:04.1]} 52. Bb7 {[%clk 0:00:02.6]}
52... Rb8 {[%clk 0:00:02.9]} 53. Rf7 {[%clk 0:00:02.3]} 53... g3 {[%clk
0:00:03]} 54. Kc5 {[%clk 0:00:01.5]} 54... Rxb7 {[%clk 0:00:02.5]} 0-1

[Event "*** Titled Tuesday Blitz"]
[Site "Chess.com"]
[Date "2021.04.06"]
[Round "3"]
[White "maximnovik"]
[Black "MITerryble"]
[Result "0-1"]
[WhiteElo "2563"]
[BlackElo "2901"]
[TimeControl "180+1"]
[EndTime "10:29:47 PDT"]
[Termination "MITerryble won on time"]

1. Nf3 {[%clk 0:02:15.2]} 1... Nf6 {[%clk 0:02:39.4]} 2. g3 {[%clk 0:02:15.6]}
2... d5 {[%clk 0:02:39]} 3. Bg2 {[%clk 0:02:16]} 3... c6 {[%clk 0:02:39.6]} 4.
c4 {[%clk 0:02:16.2]} 4... Bf5 {[%clk 0:02:38.2]} 5. cxd5 {[%clk 0:02:16.4]}
5... cxd5 {[%clk 0:02:39.1]} 6. Qb3 {[%clk 0:02:16.2]} 6... Nbd7 {[%clk
0:02:24.7]} 7. d4 {[%clk 0:02:03]} 7... e6 {[%clk 0:02:18.7]} 8. Qxb7 {[%clk
0:01:58.7]} 8... Rb8 {[%clk 0:02:07.1]} 9. Qa6 {[%clk 0:01:58.5]} 9... Rb6
{[%clk 0:01:15.8]} 10. Qa4 {[%clk 0:01:55.8]} 10... Rb4 {[%clk 0:01:15.8]} 11.
Qd1 {[%clk 0:01:55.3]} 11... Qb6 {[%clk 0:01:15.6]} 12. O-O {[%clk 0:01:52.5]}
12... Bd6 {[%clk 0:01:15.2]} 13. Nc3 {[%clk 0:01:52.2]} 13... O-O {[%clk
0:01:14.5]} 14. b3 {[%clk 0:01:52.4]} 14... Rc8 {[%clk 0:01:13]} 15. Bd2 {[%clk
0:01:52.3]} 15... Qb8 {[%clk 0:01:12.5]} 16. Rc1 {[%clk 0:01:49.8]} 16... Rb7
{[%clk 0:01:12.3]} 17. Nh4 {[%clk 0:01:35.5]} 17... Bg4 {[%clk 0:01:06.7]} 18.
h3 {[%clk 0:01:35.4]} 18... Bh5 {[%clk 0:01:06.6]} 19. g4 {[%clk 0:01:35.4]}
19... Bg6 {[%clk 0:01:06.8]} 20. Nxg6 {[%clk 0:01:35.1]} 20... hxg6 {[%clk
0:01:07.7]} 21. g5 {[%clk 0:01:28.8]} 21... Nh5 {[%clk 0:01:02.6]} 22. e3 {[%clk
0:01:28.6]} 22... Be7 {[%clk 0:00:48.8]} 23. h4 {[%clk 0:01:26.5]} 23... f6
{[%clk 0:00:49.1]} 24. Qg4 {[%clk 0:01:22.5]} 24... Nf8 {[%clk 0:00:47.8]} 25.
Nxd5 {[%clk 0:01:15.9]} 25... Ba3 {[%clk 0:00:38.4]} 26. Rxc8 {[%clk 0:01:10.6]}
26... Qxc8 {[%clk 0:00:39.3]} 27. Nc3 {[%clk 0:00:48.4]} 27... Rf7 {[%clk
0:00:33.5]} 28. Nb5 {[%clk 0:00:44.8]} 28... Be7 {[%clk 0:00:28]} 29. Rc1 {[%clk
0:00:43.6]} 29... Qe8 {[%clk 0:00:27]} 30. Nxa7 {[%clk 0:00:34.7]} 30... f5
{[%clk 0:00:24.9]} 31. Qd1 {[%clk 0:00:33.4]} 31... f4 {[%clk 0:00:25.1]} 32.
Nc6 {[%clk 0:00:29.7]} 32... fxe3 {[%clk 0:00:23.8]} 33. fxe3 {[%clk 0:00:27.4]}
33... Bd6 {[%clk 0:00:23.5]} 34. Qg4 {[%clk 0:00:24.4]} 34... Ng3 {[%clk
0:00:23.3]} 35. e4 {[%clk 0:00:19.8]} 35... Nh5 {[%clk 0:00:14.8]} 36. e5 {[%clk
0:00:19.5]} 36... Ba3 {[%clk 0:00:15.2]} 37. Rf1 {[%clk 0:00:17.9]} 37... Rd7
{[%clk 0:00:14.8]} 38. d5 {[%clk 0:00:16]} 38... exd5 {[%clk 0:00:14.4]} 39. Nd4
{[%clk 0:00:16]} 39... Qxe5 {[%clk 0:00:13.1]} 40. Rxf8+ {[%clk 0:00:15.7]}
40... Bxf8 {[%clk 0:00:13]} 41. Nf3 {[%clk 0:00:13.5]} 41... Qa1+ {[%clk
0:00:12.3]} 42. Kh2 {[%clk 0:00:13.4]} 42... Bd6+ {[%clk 0:00:11.7]} 43. Kh3
{[%clk 0:00:11.7]} 43... Re7 {[%clk 0:00:12.1]} 44. Qc8+ {[%clk 0:00:11]} 44...
Kh7 {[%clk 0:00:11.5]} 45. Qc6 {[%clk 0:00:09.8]} 45... Bf4 {[%clk 0:00:10.9]}
46. Qxd5 {[%clk 0:00:09.5]} 46... Bxd2 {[%clk 0:00:10]} 47. Qxd2 {[%clk
0:00:09.6]} 47... Qb1 {[%clk 0:00:09.3]} 48. Nd4 {[%clk 0:00:09.1]} 48... Rd7
{[%clk 0:00:07.6]} 49. Bf3 {[%clk 0:00:08.4]} 49... Qa1 {[%clk 0:00:07.3]} 50.
Nc2 {[%clk 0:00:05.4]} 50... Rxd2 {[%clk 0:00:04.4]} 51. Nxa1 {[%clk 0:00:05.5]}
51... Rxa2 {[%clk 0:00:05.3]} 52. b4 {[%clk 0:00:04.5]} 52... Rxa1 {[%clk
0:00:05.1]} 53. b5 {[%clk 0:00:04.7]} 53... Rb1 {[%clk 0:00:05.4]} 54. Bc6
{[%clk 0:00:03.9]} 54... Nf4+ {[%clk 0:00:05.8]} 55. Kg4 {[%clk 0:00:04.3]}
55... Ne6 {[%clk 0:00:06.7]} 56. Kf3 {[%clk 0:00:04.2]} 56... Nd4+ {[%clk
0:00:06.8]} 57. Kg4 {[%clk 0:00:03.7]} 57... Nxb5 {[%clk 0:00:07.7]} 58. Be4
{[%clk 0:00:03.5]} 58... Rb4 {[%clk 0:00:07.9]} 59. Kf3 {[%clk 0:00:03.1]} 59...
Nd6 {[%clk 0:00:08]} 60. Bd3 {[%clk 0:00:02.6]} 60... Rxh4 {[%clk 0:00:08.9]}
0-1

[Event "*** Titled Tuesday Blitz"]
[Site "Chess.com"]
[Date "2021.04.06"]
[Round "3"]
[White "volunteers1998"]
[Black "Lion-Al-Messi"]
[Result "0-1"]
[WhiteElo "2224"]
[BlackElo "2504"]
[TimeControl "180+1"]
[EndTime "10:29:48 PDT"]
[Termination "Lion-Al-Messi won on time"]

1. e4 {[%clk 0:03:00.9]} 1... e6 {[%clk 0:02:59.9]} 2. Nf3 {[%clk 0:02:58.7]}
2... d5 {[%clk 0:02:59.7]} 3. Nc3 {[%clk 0:02:57.1]} 3... d4 {[%clk 0:02:59.1]}
4. Ne2 {[%clk 0:02:56]} 4... c5 {[%clk 0:03:00]} 5. c3 {[%clk 0:02:52.4]} 5...
Nc6 {[%clk 0:03:00.9]} 6. cxd4 {[%clk 0:02:49.8]} 6... cxd4 {[%clk 0:03:01.4]}
7. Qa4 {[%clk 0:02:47.9]} 7... Bc5 {[%clk 0:02:59.7]} 8. b4 {[%clk 0:02:44.4]}
8... Bxb4 {[%clk 0:01:15.3]} 9. Nexd4 {[%clk 0:02:41]} 9... Be7 {[%clk 0:01:09]}
10. Bb5 {[%clk 0:02:37.7]} 10... Bd7 {[%clk 0:01:05.1]} 11. Nxc6 {[%clk
0:02:34.9]} 11... bxc6 {[%clk 0:01:04.3]} 12. Bxc6 {[%clk 0:02:32.9]} 12... Nf6
{[%clk 0:00:55.9]} 13. Bxd7+ {[%clk 0:02:28.5]} 13... Nxd7 {[%clk 0:00:53]} 14.
O-O {[%clk 0:02:22.2]} 14... O-O {[%clk 0:00:51.6]} 15. d4 {[%clk 0:02:19.4]}
15... Nf6 {[%clk 0:00:46.7]} 16. Re1 {[%clk 0:02:16.4]} 16... Qb6 {[%clk
0:00:31.3]} 17. Ba3 {[%clk 0:02:07.5]} 17... Bxa3 {[%clk 0:00:28.7]} 18. Qxa3
{[%clk 0:02:07.5]} 18... Rab8 {[%clk 0:00:28.5]} 19. Qd3 {[%clk 0:01:58.1]}
19... Rfd8 {[%clk 0:00:27.9]} 20. Rab1 {[%clk 0:01:54]} 20... Qa5 {[%clk
0:00:25.4]} 21. Rxb8 {[%clk 0:01:49.9]} 21... Rxb8 {[%clk 0:00:26.3]} 22. Rb1
{[%clk 0:01:44.6]} 22... Rd8 {[%clk 0:00:26.2]} 23. h3 {[%clk 0:01:31.5]} 23...
h6 {[%clk 0:00:26.1]} 24. Qc2 {[%clk 0:01:26.7]} 24... Nh5 {[%clk 0:00:21.7]}
25. Qb2 {[%clk 0:01:17.9]} 25... Nf4 {[%clk 0:00:16.9]} 26. a3 {[%clk
0:01:08.4]} 26... Qh5 {[%clk 0:00:16.7]} 27. Qd2 {[%clk 0:01:02.4]} 27... Nxh3+
{[%clk 0:00:14.6]} 28. gxh3 {[%clk 0:00:58.7]} 28... Qxf3 {[%clk 0:00:14.3]} 29.
Qe3 {[%clk 0:00:56.5]} 29... Qf6 {[%clk 0:00:11.9]} 30. Rd1 {[%clk 0:00:52.4]}
30... Qg6+ {[%clk 0:00:10.3]} 31. Kf1 {[%clk 0:00:48.3]} 31... f5 {[%clk
0:00:07.5]} 32. exf5 {[%clk 0:00:45.6]} 32... Qxf5 {[%clk 0:00:08.4]} 33. Re1
{[%clk 0:00:41.3]} 33... Rd6 {[%clk 0:00:07.7]} 34. Kg2 {[%clk 0:00:35.3]} 34...
Qd5+ {[%clk 0:00:06.8]} 35. Qe4 {[%clk 0:00:28.3]} 35... Qg5+ {[%clk 0:00:06.9]}
36. Kf1 {[%clk 0:00:23.4]} 36... Qb5+ {[%clk 0:00:06.8]} 37. Kg2 {[%clk
0:00:20.4]} 37... Qd7 {[%clk 0:00:07.7]} 38. f4 {[%clk 0:00:15.4]} 38... Kf7
{[%clk 0:00:07.3]} 39. Qe5 {[%clk 0:00:12.8]} 39... Qc6+ {[%clk 0:00:06.5]} 40.
Qe4 {[%clk 0:00:12.1]} 40... Qd7 {[%clk 0:00:06.2]} 41. Qe5 {[%clk 0:00:11.5]}
41... Rxd4 {[%clk 0:00:04.8]} 42. f5 {[%clk 0:00:09.6]} 42... Rd2+ {[%clk
0:00:04.8]} 43. Kg1 {[%clk 0:00:07.4]} 43... exf5 {[%clk 0:00:04.7]} 44. Rf1
{[%clk 0:00:05.5]} 44... Qd4+ {[%clk 0:00:04.2]} 45. Qxd4 {[%clk 0:00:02.7]}
45... Rxd4 {[%clk 0:00:05.1]} 46. Rxf5+ {[%clk 0:00:02.2]} 46... Ke6 {[%clk
0:00:05.4]} 47. Ra5 {[%clk 0:00:02.7]} 47... Rd7 {[%clk 0:00:05.6]} 48. Kf2
{[%clk 0:00:02.4]} 48... Kd6 {[%clk 0:00:05.5]} 49. Rb5 {[%clk 0:00:02.4]} 49...
Kc6 {[%clk 0:00:05.8]} 50. Rb4 {[%clk 0:00:03.3]} 50... a5 {[%clk 0:00:05.9]}
51. Rb1 {[%clk 0:00:03.6]} 51... Kc5 {[%clk 0:00:06]} 52. Rc1+ {[%clk
0:00:04.1]} 52... Kb5 {[%clk 0:00:05.6]} 53. Rb1+ {[%clk 0:00:04.6]} 53... Kc4
{[%clk 0:00:05.9]} 54. Rc1+ {[%clk 0:00:04.1]} 54... Kb3 {[%clk 0:00:06]} 55.
Re1 {[%clk 0:00:03.5]} 55... Kxa3 {[%clk 0:00:05.8]} 56. Re5 {[%clk 0:00:04.3]}
56... a4 {[%clk 0:00:05.6]} 57. Ra5 {[%clk 0:00:04.2]} 57... Kb4 {[%clk
0:00:05.6]} 58. Ra8 {[%clk 0:00:02.5]} 58... a3 {[%clk 0:00:05.9]} 59. Kf3
{[%clk 0:00:02.5]} 59... Kb3 {[%clk 0:00:06.2]} 60. Kf4 {[%clk 0:00:02.4]} 60...
Rd4+ {[%clk 0:00:05.8]} 61. Kf5 {[%clk 0:00:02.1]} 61... a2 {[%clk 0:00:05.6]}
62. Kg6 {[%clk 0:00:02]} 62... Ra4 {[%clk 0:00:05.7]} 0-1

[Event "*** Titled Tuesday Blitz"]
[Site "Chess.com"]
[Date "2021.04.06"]
[Round "3"]
[White "Shuvalov"]
[Black "TST2014"]
[Result "1/2-1/2"]
[WhiteElo "2444"]
[BlackElo "2674"]
[TimeControl "180+1"]
[EndTime "10:29:58 PDT"]
[Termination "Game drawn by repetition"]

1. b4 {[%clk 0:02:53.1]} 1... e5 {[%clk 0:02:52.1]} 2. Bb2 {[%clk 0:02:52.6]}
2... d6 {[%clk 0:02:47.9]} 3. e3 {[%clk 0:02:52.1]} 3... f5 {[%clk 0:02:42.4]}
4. f4 {[%clk 0:02:48.9]} 4... Qe7 {[%clk 0:02:20.8]} 5. fxe5 {[%clk 0:02:35.6]}
5... dxe5 {[%clk 0:02:20.6]} 6. a3 {[%clk 0:02:13.5]} 6... a5 {[%clk 0:02:09.3]}
7. b5 {[%clk 0:02:11.4]} 7... g6 {[%clk 0:02:05.4]} 8. Nf3 {[%clk 0:02:07.8]}
8... Bg7 {[%clk 0:02:05.2]} 9. Bc4 {[%clk 0:02:06.2]} 9... Nh6 {[%clk
0:02:01.3]} 10. Nc3 {[%clk 0:01:54.2]} 10... c6 {[%clk 0:01:56.5]} 11. a4 {[%clk
0:01:51.2]} 11... Be6 {[%clk 0:01:56]} 12. Ba3 {[%clk 0:01:47.9]} 12... Qd7
{[%clk 0:01:50.2]} 13. Qe2 {[%clk 0:01:36.5]} 13... e4 {[%clk 0:01:11.1]} 14.
Ng5 {[%clk 0:01:33.3]} 14... Bxc4 {[%clk 0:01:08.5]} 15. Qxc4 {[%clk 0:01:34.2]}
15... Nf7 {[%clk 0:01:04.6]} 16. Ne6 {[%clk 0:00:51.8]} 16... Bf6 {[%clk
0:01:03.2]} 17. b6 {[%clk 0:00:40.1]} 17... Na6 {[%clk 0:00:56.9]} 18. Rd1
{[%clk 0:00:30.6]} 18... Ne5 {[%clk 0:00:54.9]} 19. Qb3 {[%clk 0:00:26.3]} 19...
Be7 {[%clk 0:00:41.7]} 20. Bb2 {[%clk 0:00:19.8]} 20... Bh4+ {[%clk 0:00:23.3]}
21. g3 {[%clk 0:00:18.2]} 21... Bf6 {[%clk 0:00:23.2]} 22. O-O {[%clk
0:00:17.9]} 22... Nf3+ {[%clk 0:00:23.1]} 23. Kg2 {[%clk 0:00:17]} 23... h5
{[%clk 0:00:13.5]} 24. d3 {[%clk 0:00:16.6]} 24... Qf7 {[%clk 0:00:09.4]} 25.
dxe4 {[%clk 0:00:16.2]} 25... Bxc3 {[%clk 0:00:08.9]} 26. Bxc3 {[%clk 0:00:16]}
26... fxe4 {[%clk 0:00:04.6]} 27. Bxh8 {[%clk 0:00:15.5]} 27... Ke7 {[%clk
0:00:04.6]} 28. Ng5 {[%clk 0:00:12.6]} 28... Qxb3 {[%clk 0:00:04.3]} 29. cxb3
{[%clk 0:00:12.7]} 29... Rxh8 {[%clk 0:00:04.9]} 30. Nxe4 {[%clk 0:00:12.2]}
30... Ne5 {[%clk 0:00:04.6]} 31. Ng5 {[%clk 0:00:10]} 31... Nb4 {[%clk
0:00:04.5]} 32. Rf4 {[%clk 0:00:08.9]} 32... Nd5 {[%clk 0:00:04.5]} 33. Re4
{[%clk 0:00:08.3]} 33... Kf6 {[%clk 0:00:04.5]} 34. Rf1+ {[%clk 0:00:07.4]}
34... Kxg5 {[%clk 0:00:04.5]} 35. Rxe5+ {[%clk 0:00:07.8]} 35... Kh6 {[%clk
0:00:05]} 36. Re6 {[%clk 0:00:07.5]} 36... Nxb6 {[%clk 0:00:05]} 37. Rff6 {[%clk
0:00:07]} 37... Rg8 {[%clk 0:00:05.3]} 38. Re7 {[%clk 0:00:07.2]} 38... Nd5
{[%clk 0:00:05.5]} 39. Rff7 {[%clk 0:00:07.2]} 39... Nxe7 {[%clk 0:00:05.6]} 40.
Rxe7 {[%clk 0:00:08.1]} 40... Rb8 {[%clk 0:00:05.9]} 41. Kf3 {[%clk 0:00:07.7]}
41... b5 {[%clk 0:00:06.2]} 42. Ra7 {[%clk 0:00:06.8]} 42... bxa4 {[%clk
0:00:05.6]} 43. bxa4 {[%clk 0:00:07.7]} 43... Rb2 {[%clk 0:00:05.6]} 44. Rxa5
{[%clk 0:00:07.8]} 44... Rxh2 {[%clk 0:00:05.3]} 45. Rc5 {[%clk 0:00:07.3]}
45... Ra2 {[%clk 0:00:02.8]} 46. a5 {[%clk 0:00:07.5]} 46... Ra4 {[%clk
0:00:03]} 47. e4 {[%clk 0:00:07.3]} 47... Kg7 {[%clk 0:00:03.4]} 48. Kf4 {[%clk
0:00:07.2]} 48... Kf7 {[%clk 0:00:03.9]} 49. Ke5 {[%clk 0:00:06.6]} 49... Ra3
{[%clk 0:00:03.9]} 50. Kd6 {[%clk 0:00:05.9]} 50... Rxg3 {[%clk 0:00:04]} 51. e5
{[%clk 0:00:05.8]} 51... Ra3 {[%clk 0:00:04.6]} 52. e6+ {[%clk 0:00:04.2]} 52...
Kf6 {[%clk 0:00:05]} 53. Rxc6 {[%clk 0:00:02.6]} 53... Rd3+ {[%clk 0:00:05.3]}
54. Kc7 {[%clk 0:00:02.6]} 54... Ke7 {[%clk 0:00:05.9]} 55. a6 {[%clk
0:00:02.6]} 55... Ra3 {[%clk 0:00:06.5]} 56. Kb7 {[%clk 0:00:02.4]} 56... h4
{[%clk 0:00:07.1]} 57. a7 {[%clk 0:00:02.6]} 57... Rb3+ {[%clk 0:00:07.6]} 58.
Rb6 {[%clk 0:00:02.7]} 58... Ra3 {[%clk 0:00:08.1]} 59. Ra6 {[%clk 0:00:03]}
59... Rb3+ {[%clk 0:00:08.2]} 60. Kc7 {[%clk 0:00:01.8]} 60... Rc3+ {[%clk
0:00:08.7]} 61. Kb6 {[%clk 0:00:01.8]} 61... Rb3+ {[%clk 0:00:09.3]} 62. Kc7
{[%clk 0:00:02.1]} 62... Rc3+ {[%clk 0:00:09.6]} 63. Kb7 {[%clk 0:00:02.6]}
63... Rb3+ {[%clk 0:00:10.1]} 64. Kc6 {[%clk 0:00:02.2]} 64... Rc3+ {[%clk
0:00:10.4]} 65. Kb7 {[%clk 0:00:02.5]} 65... Rb3+ {[%clk 0:00:10.7]} 1/2-1/2